{"text_format":"1","workbook":"xlsx","n_sheets":2,"sheets":["Pasiūlymas","Subtiekėjai ir priedai"],"not_rendered":{"charts":0,"images":0,"macros":1,"external_links":0,"defined_names":0,"comments":0,"pivot_tables":0},"unopened":[],"bounds":{"document_bytes":16777216,"sheet_cells":100000,"rows_first":2000,"rows_last":500,"rows_between":2000,"halvings":0,"cell_chars":16384,"cell_head_chars":4096},"cells_cut":0,"cells_raw":0,"read":"whole","date_system":"1900"}

{"sheet":"Pasiūlymas","index":0,"n_rows":129,"n_cols":8,"rows_kept":129,"cut":false,"hidden":false,"merged":[[27,0,27,5],[28,0,28,5],[24,0,24,5],[25,0,25,5],[26,0,26,5],[17,0,17,1],[17,2,17,5],[18,0,18,1],[18,2,18,5],[23,0,23,5],[19,0,19,1],[20,0,20,1],[19,2,19,5],[20,2,20,5],[22,0,22,5],[14,0,14,1],[14,2,14,5],[15,0,15,1],[15,2,15,5],[16,0,16,1],[16,2,16,5],[11,0,11,1],[11,2,11,5],[12,0,12,1],[12,2,12,5],[13,0,13,1],[13,2,13,5]]}
[]
["PIRKIMO SĄLYGŲ PRIEDAS \"PASIŪLYMŲ FORMA\""]
[]
["RANKINIAI DARBO ĮRANKIAI"]
[]
["Kam:","LSMU Kauno ligoninė"]
[]
["Data:","2021-02-25"]
["Nr.:"]
["Vieta:","Vilnius"]
[]
["Tiekėjo pavadinimas / Ūkio subjektų grupės nariai:",null,"UAB \"DEPO DIY LT\""]
["Tiekėjo kodas (-ai):",null,302854461]
["Tiekėjo adresas (-ai):",null,"Registracijos adresas: Konstitucijos pr. 7, Vilnius, LT-09308; Adresas korespondencijai: Noliktavu iela 7, Dreiliņi, Stopiņu novads, Latvija, LV-2130"]
["Tiekėjo PVM mokėtojo kodas(-ai):",null,"LT100009824010"]
["Tiekėjo / Ūkio subjektų grupės atsakingo partnerio sąskaitos numeris, banko pavadinimas ir banko kodas (-ai):",null,"AB SEB bankas, CBVILT2X, LT77 7044 0600 0784 6982"]
["Asmens atsakingo už pasiūlymą vardas, pavardė:",null,"Dita Poželiene"]
["Asmens atsakingo už pasiūlymą telefono numeris, el. pašto adresas:",null,"(00 370)69441853, uzsakymai@depo-diy.lt"]
["Tiekėjo / Ūkio subjektų grupės, laimėjimo atveju, pasirašančio sutartį asmens vardas, pavardė, pareigos:",null,"Andris Kozlovskis, Direktorius"]
["Tiekėjo / Ūkio subjektų grupės, laimėjimo atvjeu, už sutarties vykdymą atsakingo asmens vardas, pavardė, telefono numeris, elektroninio pašto adresas:",null,"Andris Kozlovskis, (00 370)69441853, uzsakymai@depo-diy.lt"]
["(1) Tiekėjo / Ūkio subjektų grupės narių, (2) ūkio subjektų, kurių pajėgumais remiamasi, ir (3) jei pašalinimo pagrindai taikomi visiems subtiekėjams - subtiekėjų, kolegialaus priežiūros organo (Stebėtojų tarybos) ir (ar) kolegialaus valdymo organo (Valdybos) narių sąrašas (jei sudaryta) ir (ar) asmuo, kuriam suteikti VPĮ 46 str. 2 d. 2 p. numatyti įgaliojimai",null,"Nėra sudarytas kolegialus priežiūros organas ir (ar) kolegialus valdymo organas."]
[]
["Tiekėjo patvirtinimai:"]
["1. Šiuo pasiūlymu pažymime, kad sutinkame su visomi pirkimo sąlygomis, nustatytomis:"]
["1.1. viešojo pirkimo dokumentuose"]
["1.2. kituose pirkimo dokumentuose (jų paaiškinimuose, papildymuose)."]
["2. Patvirtiname, kad informacija ir duomenys, pateikti pasiūlyme, yra teisingi ir apima viską, ko reikia tinkamam sutarties įvykdymui"]
["3. Patvirtiname, kad jei pasiūlyme nenurodyti kolegialaus priežiūros/valdymo organų nariai, šie organai juridiniuose asmenyse nėra sudaryti (taikoma, kai pirkimo dokumentuose nustatyti pašalinimo pagrindai)."]
["4. Pasiūlymas galioja iki termino, nustatyto pirkimo dokumentuose."]
[]
[]
["Tiekėjo pasiūlymas:"]
["Nr.","Parametrai","Kiekis",null,"Mato vienetas","Kaina be PVM, Eur","Suma be PVM, Eur"]
["1.1.","Apsauginė plėvelė statybinė 4[+-1]m x 6[+-0,5]m","Apsauginė permatoma plėvelė. 4[+-1] x 6[+-0,5]m",200,"vnt.",3.34,{"$f":"IF(ISBLANK(F34),\"\", PRODUCT(D34,F34))","v":668}]
["1.1.","Glaistyklė 100(+-20) mm pločio","Ergonomiška plastikinė gumuota rankena; Darbinės dalies medžiaga-nerūdijantis plienas",30,"vnt.",0.78,23.400000000000002]
["1.2.","Glaistyklė 150(+-20) mm pločio","Ergonomiška plastikinė gumuota rankena; Darbinės dalies medžiaga-nerūdijantis plienas",20,"vnt.",0.89,17.8]
["1.3.","Glaistyklė 200(+-30) mm pločio","Ergonomiška plastikinė gumuota rankena; Darbinės dalies medžiaga-nerūdijantis plienas",20,"vnt.",2.35,47]
["1.4.","Glaistyklė 350(+-50) mm pločio","Ergonomiška plastikinė gumuota rankena; Darbinės dalies medžiaga-nerūdijantis plienas",20,"vnt.",2.42,48.4]
["1.5.","Išlyginamoji tinko liniuotė  100[+-10] cm","Lyginimo liniuotės tipas -trapecija ; Medžiaga-aliuminis",10,"vnt.",2.6,26]
["1.6.","Išlyginamoji tinko liniuotė  150[+-10] cm","Lyginimo liniuotės tipas -trapecija ; Medžiaga-aliuminis",10,"vnt.",3.54,35.4]
["1.7.","Išlyginamoji tinko liniuotė  200[+-10] cm","Lyginimo liniuotės tipas -trapecija ; Medžiaga-aliuminis",10,"vnt.",4.5,45]
["1.8."," Trintuvė,naudojama tinkavimo, mūrijimo darbams 15[+-3] x 30[+-5] cm","Rankena medinė arba plastikinė; Darbinės dalies medžiaga-nerūdijantis plienas",10,"vnt.",2.38,23.799999999999997]
["1.9."," Trintuvė,naudojama tinkavimo, mūrijimo darbams 15[+-3] x 55[+-5] cm","Rankena medinė arba plastikinė; Darbinės dalies medžiaga-nerūdijantis plienas",10,"vnt.",3.47,34.700000000000003]
["1.10."," Trintuvė ,dantyta , skirta plytelių klijams paskirstyti ant pagrindo 15[+-3] x 30[+-5] cm","Rankena medinė arba plastikinė; Darbinės dalies medžiaga-nerūdijantis plienas",10,"vnt.",2.4,24]
["1.11.","Tinkavimo mentė 100[+-15] x 130[+-20] mm","Rankena medinė arba plastikinė; Darbinės dalies medžiaga-nerūdijantis plienas",10,"vnt.",0.87,8.6999999999999993]
["1.12.","Mūrininko mentė 140[+-20] x 200[+-20] mm","Rankena medinė arba plastikinė; Darbinės dalies medžiaga-nerūdijantis plienas",10,"vnt.",2.06,20.6]
["1.13.","Trintuvė poliuretaninė ,naudojama tinkavimo darbams 140[+-20] x 280[+-30] mm","Medžiaga - poliuretanas arba lygiavertė; 140[+-20] x 280[+-30] mm",15,"vnt.",1.2,18]
["1.14.","Statybinis kibiras su rankenomis  65[+-10] l","Tūris: 65 [+-10]litro; Medžiaga -plastikas",10,"vnt.",3.22,32.200000000000003]
["1.15.","Statybinis kibiras su rankenomis  15[+-3] l","Tūris: 15 [+-10]litro; Medžiaga -plastikas",20,"vnt.",0.55000000000000004,11]
["1.16.","Atsuktuvas ir antgalių rinkinys","Minimaliai turi būti antgaliai PH1,  PH2, PH3, PZ1,  PZ2, PZ3,  plokšti, Hexa 2-6 mm,  antgaliai  veržlėms 5-10 mm; Sukimo antgalių komplektas su su terkšliniu atsuktuvu",15,"vnt.",9.84,147.6]
["1.17.","Šešiakampių raktų rinkinys","Minimaliai turi būti  vnt , 1,5 - 10; Medžiaga-metalų lydinys",20,"vnt.",1.17,23.4]
["1.18.","Atsuktuvo antgaliai PZ1","Ilgis: 25 mm; Medžiaga-plienas",150,"vnt.",0.14000000000000001,21.000000000000004]
["1.19.","Atsuktuvo antgaliai PZ2","Ilgis: 25 mm; Medžiaga-plienas",150,"vnt.",0.25,37.5]
["1.20.","Antgaliai suktukui veržlėms","Dydžiai M6, M8,M10, M12, M13; Medžiaga-plienas",100,"vnt.",2.5299999999999998,252.99999999999997]
["1.21.","Atsuktuvo antgaliai PZ2 prailginti","Ilgis: 50 mm; Medžiaga-plienas",30,"vnt.",0.32,9.6]
["1.22.","Atsuktuvo antgaliai PZ1 prailginti","Ilgis: 50 mm; Medžiaga-plienas",30,"vnt.",0.92,27.6]
["1.23.","Atsuktuvas plokščias 5.5 x 1.0 mm","Galvutės tipas: 5.5 x 1.0mm, plokščias . Ilgis 200[+-30]mm; Medžiaga-plienas . Rankena - gumuotas plastikas",30,"vnt.",0.48,14.399999999999999]
["1.24.","Atsuktuvas plokščias 7,5x1,5 mm","Galvutės tipas: 7.5 x 1.5 mm, plokščias . Ilgis 200[+-30]mm; Medžiaga-plienas . Rankena - gumuotas plastikas",30,"vnt.",1.31,39.300000000000004]
["1.25.","Atsuktuvas kryžminis PH1","Galvutės tipas: PH1.Ilgis 200[+-30]mm; Medžiaga-plienas . Rankena - gumuotas plastikas",30,"vnt.",0.48,14.399999999999999]
["1.26.","Atsuktuvas kryžminis PH2","Galvutės tipas: PH2.Ilgis 220[+-30]mm; Medžiaga-plienas . Rankena - gumuotas plastikas",20,"vnt.",0.51,10.199999999999999]
["1.27.","Atsuktuvų rinkinys","  Minimaliai PH1x75, PH2x100, SL3x75, SL5x75, SL6x100, SL5x150, SL8x150; Medžiaga-plienas . Rankena - gumuotas plastikas",20,"vnt.",3.77,75.400000000000006]
["1.28.","Atsuktuvo antgalių rinkinys","  Minimaliai PH1; PH2; PH3; PZ0; PZ1; PZ2; PZ3; T10; T15; T20; T25; T30; T40; 4; 5; 6, ; Medžiaga-plienas .",20,"vnt.",5.43,108.6]
["1.29.","Magnetinis antgalių laikiklis 50[+-10]mm ilgio","Colinė jungtis: 1/4 ; Medžiaga-plienas",30,"vnt.",0.75,22.5]
["1.30.","Magnetinis antgalių laikiklis 100[+-20]mm ilgio","Colinė jungtis: 1/4 ; Medžiaga-plienas",30,"vnt.",1.06,31.8]
["1.31.","Kombinuotų raktų rinkinys  6-21 mm","Raktų sugriebimo matmuo yra nuo 6 mm iki 21 mm, vienas galas kilpinis; Medžiaga-plienas ; Minimali komplektacija :Raktai 6,8 10 12 13 15 17 19 21",20,"vnt.",2.23,44.6]
["1.32.","Kandiklinės replės 180[+-20] mm 1000v","Tinka elektros darbams iki  1000 V ; Medžiaga-plienas . Rankenos aptrauktos plastiku.",20,"vnt.",4.3499999999999996,{"$f":"IF(ISBLANK(F66),\"\", PRODUCT(D66,F66))","v":87}]
["1.33.","Kombinuotosios replės 180[+-20]mm 1000v","Tinka elektros darbams iki  1000 V  ; Medžiaga-plienas . Rankenos aptrauktos plastiku.",20,"vnt.",2.2200000000000002,44.400000000000006]
["1.34.","Santechninės replės 330 mm","Žiočių skersmuo: 6 - 48 mm . ; Medžiaga-plienas . Rankenos aptrauktos plastiku.",10,"vnt.",5.12,51.2]
["1.35.","Santechninės replės 250 mm","Žiočių skersmuo: 6 - 38 mm . ; Medžiaga-plienas . Rankenos aptrauktos plastiku.",10,"vnt.",1.24,12.4]
["1.36.","Montažinių putų pistoletas","Medžiaga: Metalas, Teflonas ; Visiškai padengtas teflonu metalinis korpusas su ergonomine rankena ; Ilgis 210[+-20] mm  ; Turi atitinkti reikalavimus, keliamus statybvietėse",3,"vnt.",6.75,20.25]
["1.37.","Pistoletai hermetikams","Ilgis: 225 mm. Medžiaga: plienas, aliuminis ; Profesionalus, sustiprintas",30,"vnt.",1.05,31.5]
["1.38.","Spaustuvas 80[+-10]x300[+-20] mm","Medžiaga: Metalų lydinys, Plastikas ; Suspaudimo jėga: 200(+-50) kg  ; Spaustuvas darbui viena ranka su plėstuvu.",10,"vnt.",3.9,39]
["1.39.","Spaustuvas 80[+-10]x450[+-50] mm","Medžiaga: Metalų lydinys, Plastikas ; Suspaudimo jėga: 200(+-50) kg  ; Spaustuvas darbui viena ranka su plėstuvu.",10,"vnt.",3.14,31.400000000000002]
["1.40.","Spaustuvas kampams 360[+-20] x 360[+-20] x 50[+-10]mm","Medžiaga: Metalų lydinys, Plastikas ; Ilgis: 360(+-20) mm .Plotis: 360(+-20) mm",10,"vnt.",26.75,267.5]
["1.41.","Žirklės skardai kirpti 250[+-30] mm","Maksimalus kerpamos medžiagos storis: 1.22[+-0,2] mm",10,"vnt.",1.53,15.3]
["1.42.","Slankmatis,skaitmeninis 150 mm","Gradavimas: milimetrai .Matavimo riba: 1 - 150 mm .Matavimo paklaida: 0,02mm  ; Medžiaga - nerūdijantis plienas, plastikas  ; LCD ekranas",10,"vnt.",10.56,105.60000000000001]
["1.43.","Staliaus kampainis","Kampas: 90 laipsnių ,45 laipsniai, reguliuojamasis  ; Medžiaga - nerūdijantis plienas",10,"vnt.",6.93,69.3]
["1.44.","Gulsčiukas 180 cm","3 indikatoriai. Ilgis: 180 сm. Tikslumas: 0.3[+-0,05] mm/m . Tikslumas: 0.50[+-0,05] mm/m  ; Medžiaga - aliuminis , metalų lydinys. Su rankena",10,"vnt.",15.53,155.29999999999998]
["1.45.","Gulsčiukas 120 cm","3 indikatoriai. Ilgis: 120 сm. Tikslumas: 0.3[+-0,05] mm/m . Tikslumas: 0.50[+-0,05] mm/m  ; Medžiaga - aliuminis , metalų lydinys. Su rankena",10,"vnt.",10.11,101.1]
["1.46.","Gulsčiukas 60 cm","3 indikatoriai. Ilgis: 60 сm. Tikslumas: 0.3[+-0,05] mm/m . Tikslumas: 0.50[+-0,05] mm/m  ; Medžiaga - aliuminis , metalų lydinys. Su rankena",15,"vnt.",5.91,88.65]
["1.47.","Ruletė 10[+-1]m ilgio, 32[+-3] mm pločio","Juostos medžiaga-plienas . Korpusas atsparus smūgiams, gumuotas ; Skalė 1 mm , gradavimas metrai, centimetrai milimetrai ; Su juostos fiksatoriumi",20,"vnt.",4.59,91.8]
["1.48.","Ruletė 5[+-1]m ilgio, 25[+-3] mm pločio","Juostos medžiaga-plienas . Korpusas atsparus smūgiams, gumuotas ; Skalė 1 mm , gradavimas metrai, centimetrai milimetrai ; Su juostos fiksatoriumi",50,"vnt.",1.78,89]
["1.49.","Kniediklis 300 [+-50]mm ilgio","Tinkamų kniedžių dydžiai: 3,2, 4, 4,8 .Tinkamos kniedės- aliuminės, plieninės  ; Kniediklio galvutės tipas-prailginta  ; Korpusas metalinis",10,"vnt.",3.78,37.799999999999997]
["1.50.","Kūjis 8[+-2] kg","Darbinės dalies medžiaga - plienas  ; Kotas medinis, lakuotas arba plastikini; Korpusas metalinis",5,"vnt.",12.83,64.150000000000006]
["1.51.","Kūjis 4[+-1] kg","Darbinės dalies medžiaga - plienas  ; Kotas medinis, lakuotas arba plastikinis; Korpusas metalinis",5,"vnt.",5.3,26.5]
["1.52.","Plaktukas 1[+-0,2] kg","Darbinės dalies medžiaga - plienas  ; Kotas medinis, lakuotas arba plastikinis; Korpusas metalinis",10,"vnt.",1.91,19.099999999999998]
["1.53.","Kabių kalimo įrankis  6-14 mm , kabių tipas 140","Kabių ilgis: 6 - 14 mm ; korpusas plieninis",10,"vnt.",28.03,280.3]
["1.54.","Kabės 6 mm ,dėžutėje 1000[+-100] vnt, tipas 140","Kabių ilgis: 6 mm ; Tinka objektui 1.60",50,"vnt.",1.37,68.5]
["1.55.","Kabės 8 mm ,dėžutėje 1000[+-100] vnt, tipas 140","Kabių ilgis: 8mm ; Tinka objektui 1.60",50,"vnt.",0.71,35.5]
["1.56.","Kabės 10 mm ,dėžutėje 1000[+-100] vnt, tipas 140","Kabių ilgis: 10mm ; Tinka objektui 1.60",30,"vnt.",0.75,22.5]
["1.57.","Kabės 12 mm ,dėžutėje 1000[+-100] vnt, tipas 140","Kabių ilgis: 12mm ; Tinka objektui 1.60",20,"vnt.",0.84,16.8]
["1.58.","Kabės 14 mm ,dėžutėje 1000[+-100] vnt, tipas 140","Kabių ilgis: 14mm ; Tinka objektui 1.60",20,"vnt.",0.87,17.399999999999999]
["1.59.","Plokščias medžio kaltas 6[+-1]mm","Apdirbama medžiaga-mediena  ; Rankena- plastikas, darbinė dalis-plienas. ; Darbinės dalies plotis: 6[+-1]mm",10,"vnt.",0.67,6.7]
["1.60.","Plokščias medžio kaltas 12[+-2]mm","Apdirbama medžiaga-mediena  ; Rankena- plastikas, darbinė dalis-plienas. ; Darbinės dalies plotis: 12[+-2]mm",10,"vnt.",0.76,7.6]
["1.61.","Plokščias medžio kaltas 18[+-2]mm","Apdirbama medžiaga-mediena  ; Rankena- plastikas, darbinė dalis-plienas. ; Darbinės dalies plotis: 18[+-2]mm",10,"vnt.",0.85,8.5]
["1.62.","Plokščias medžio kaltas 24[+-2]mm","Apdirbama medžiaga-mediena  ; Rankena- plastikas, darbinė dalis-plienas. ; Darbinės dalies plotis: 24[+-2]mm",10,"vnt.",0.89,8.9]
["1.63.","Plokščias medžio kaltas 32[+-2]mm","Apdirbama medžiaga-mediena  ; Rankena- plastikas, darbinė dalis-plienas. ; Darbinės dalies plotis: 32[+-2]mm",10,"vnt.",1.27,12.7]
["1.64.","Viniatraukis [laužtuvas] 1000[+-100]x18[+-2] mm","Ilgis: 1000[+-100] mm .Skersmuo: 18[+-2] mm  ; Medžiaga - metalų lydinys",10,"vnt.",3.08,{"$f":"IF(ISBLANK(F98),\"\", PRODUCT(D98,F98))","v":30.8}]
["1.65.","Viniatraukis [ laužtuvas]  600[+-100]x16[+-2] mm","Ilgis: 600[+-100] mm .Skersmuo: 16[+-2] mm  ; Medžiaga - metalų lydinys",15,"vnt.",1.74,26.1]
["1.66.","Plytelių pjovimo staklės","Maksimalus pjovimo ilgis: 600[+-50] mm .Maksimalus pjovimo ilgis įstrižai: 420[+-20] mm  Maksimalus pjovimo gylis: 12[+-1] mm Pjovimo ratuko skersmuo: 8[+-2] mm  ; Medžiaga - metalų lydinys",4,"vnt.",28.37,113.48]
["1.67.","Pjūklas metalui pjauti 30 cm","Apdirbama medžiaga: metalas .Ašmenų ilgis: 300 mm ; Keičiami 300 mm pjūkleliai ; Rankena gumuota. Rėmas metalinis",20,"vnt.",4.84,96.8]
["1.68.","Metalo pjūklo ašmenys 30 cm","Apdirbama medžiaga: metalas; Tinka objektui 1.75",200,"vnt.",0.05,10]
["1.69.","Rankinis medžio pjūklas 600[+-100]mm","Apdirbama medžiaga: medis; Rankena plastikinė, gumuota. Darbinė dalis- metalų lydinys; Dantukų skaičius colyje -10[+-2]",30,"vnt.",1.58,47.400000000000006]
["1.70.","Rankinis medžio pjūklas 450[+-50]mm","Apdirbama medžiaga: medis; Rankena plastikinė, gumuota. Darbinė dalis- metalų lydinys; Dantukų skaičius colyje -10[+-2]",30,"vnt.",1.48,44.4]
["1.71.","Trapecinių ašmenų peilis 230[+-20] mm","Peilis - sulenkiamasis, ašmenų tipas - trapeciniai ; Medžiaga - metalas, plastikas; Ilgis 230[+-20]mm",50,"vnt.",9.5299999999999994,476.49999999999994]
["1.72.","Trapecinių ašmenų komplektas [ min. 5vnt.]","Ašmenų tipas - trapeciniai ; Medžiaga - metalas; Tinka objektui 1.78",200,"kompl.",0.86,172]
["1.73.","Laužomųjų ašmenų peilis  18 mm","Medžiaga -metalų lydinys, plastikas ; Ašmenų tipas - laužomieji.Ašmenų ilgis: 180[+-10] mm .Ašmenų plotis: 18 mm",100,"vnt.",1.22,122]
["1.74.","Ašmenys peiliui 18 mm [ min.5 vnt.]","Ašmenų tipas - laužomi; Medžiaga -metalų lydinys; Ašmenų ilgis: 108 mm .Ašmenų plotis: 18 mm",200,"kompl.",0.24,48]
["1.75.","Gipskartonio oblius, 250[+-20]x40[+-10] mm","Ilgis: 250[+-20] mm. Skirta gipskartoniui; Medžiaga -metalų lydinys, plastikas",5,"vnt.",6.24,31.200000000000003]
["1.76.","Gipskartonio oblius, 150[+-20]x40[+-10] mm","Ilgis: 150[+-20] mm. Skirta gipskartoniui; Medžiaga -metalų lydinys, plastikas",10,"vnt.",15.09,150.9]
["1.77.","Pjūklas gipskartoniui pjauti  150[-+20] mm","Ašmenų ilgis: 150[+-20] mm.; Medžiaga -metalų lydinys, plastikas",20,"vnt.",1.3,26]
["1.78.","Statybinis kibiras su rankenomis  ,stačiakampis,15[+-3] l","Tūris: 15 [+-3]litro; Medžiaga -plastikas",20,"vnt.",2.84,56.8]
["1.79.","Trintuvė poliuretaninė ,naudojama tinkavimo darbams 180[+-20] x 220[+-30] mm","Medžiaga - poliuretanas arba lygiavertė; 180[+-20] x 220[+-30] mm",20,"vnt.",1.66,33.199999999999996]
["1.80.","Trintuvė poliuretaninė ,naudojama tinkavimo darbams 150[+-30] x 1200[+-200] mm","Medžiaga - poliuretanas arba lygiavertė; 150[+-30] x 1200[+-200] mm",20,"vnt.",5.84,116.8]
["1.82.","Ašmenys trapeciniai linoleumui pjauti","Medžiaga - plienas; Ašmenys trapeciniai , galuose \"kablio\" formos ; Tinka objektui 1.73",100,"vnt.",0.66,66]
["1.83.","Oblius medžio 250(+-30)x50(+-10)mm","Medžiaga -medis, metalų lydinys",6,"vnt.",4.4000000000000004,26.400000000000002]
["1.84.","Metalo dildžių komplektas min. 4 vnt","Dildės ilgis 200(+-50)mm;  ; ; Medžiaga  Plienas  ; Rupumas  2  ; ; ; Dildės forma  Apvali  ; Apdirbama medžiaga  Metalas  ; Su dėklu  Taip  ; Komplekte minimaliai - apvali, kvadratinė, trikampė, plokščia;",10,"vnt.",14.16,141.6]
["1.85.","Šlifavimo kempinė  125(+-20)x90(+-10)x26(+-5) mm","Grubumai 60, 80, 100, 120",300,"vnt.",0.65,195]
["1.86.","Šlifavimo tinklelis 280(+-50)x115(+-30)mm","Grubumai  100, 120",200,"vnt.",0.15,30]
["1.87.","Įrankių tepalas WD-40 tipo  400(+-100)ml","WD-40 tipo, arba lygiavertis; Purškiamas, talpa 400(+-100)ml",100,"vnt.",3.16,316]
["1.88.","Dažų ir statybinių mišinių maišymo antgalis 80(+-20)x500(+-100)mm","Skirtas dažams ar statybiniams mišiniams maišyti; Medžiaga - metalų lydinys.Tvirtinamas į suktuką ar perforatorių.",15,"vnt.",1.08,16.200000000000003]
["1.89.","Smailus kastuvas  120(+-20) cm","Darbinės dalies plotis 218(+-20) mm , medžiaga- plienas; Su mediniu ar plastikiniu kotu.",10,"vnt.",2.5,25]
["1.90.","Bukas kastuvas  120(+-20) cm","Darbinės dalies plotis 190(+-30) mm , medžiaga- plienas; Su mediniu ar plastikiniu kotu.",10,"vnt.",2.4,24]
["1.91.","Kirvis","Kirvio galvos svoris 0.7(+-0,2 kg ). Medžiaga - plienas; Su mediniu ar plastikiniu kotu.",10,"vnt.",2.5299999999999998,25.299999999999997]
["1.92.","Staliaus plaktukas - viniatraukis  450(+-100) gr","Darbinės dalies medžiaga -nerūdijantis plienas, plienas; Su mediniu ar plastikiniu kotu.",15,"vnt.",2.65,39.75]
["1.93.","Plaktukas 0,5[+-0,2] kg","Darbinės dalies medžiaga - plienas  ; Kotas medinis, lakuotas arba plastikinis; Korpusas metalinis",10,"vnt.",1.17,11.7]
[null,null,null,null,null,"Suma be PVM",{"$f":"IF((SUMPRODUCT(--(G34:G126=\"\"))>0), \"\", SUM(G34:G126))","v":6417.8799999999992},{"$f":"IF((SUMPRODUCT(--(G34:G126=\"\"))>0), \"Neužpildytos visų objektų kainos\", \"\")","v":""}]
[null,null,null,null,null,"PVM suma",1347.75]
[null,null,null,null,null,"Suma su PVM",{"$f":"IF(ISBLANK(G128), \"\", SUM(G127:G128))","v":7765.6299999999992}]

{"sheet":"Subtiekėjai ir priedai","index":1,"n_rows":100,"n_cols":11,"rows_kept":100,"cut":false,"hidden":false,"merged":[[23,0,23,1],[22,0,22,1],[21,0,21,1],[20,0,20,1],[19,0,19,1],[28,0,28,1],[27,0,27,1],[26,0,26,1],[25,0,25,1],[24,0,24,1],[23,2,23,4],[22,2,22,4],[21,2,21,4],[20,2,20,4],[19,2,19,4],[28,2,28,4],[27,2,27,4],[26,2,26,4],[25,2,25,4],[24,2,24,4],[23,5,23,7],[22,5,22,7],[21,5,21,7],[20,5,20,7],[19,5,19,7],[28,5,28,7],[27,5,27,7],[26,5,26,7],[25,5,25,7],[24,5,24,7],[23,8,23,9],[22,8,22,9],[21,8,21,9],[20,8,20,9],[19,8,19,9],[28,8,28,9],[27,8,27,9],[26,8,26,9],[25,8,25,9],[24,8,24,9],[16,0,16,10],[18,8,18,9],[18,5,18,7],[18,2,18,4],[18,0,18,1],[13,0,13,1],[12,0,12,1],[11,0,11,1],[10,0,10,1],[13,8,13,9],[12,8,12,9],[11,8,11,9],[10,8,10,9],[4,0,4,1],[5,5,5,7],[5,0,5,1],[9,0,9,1],[13,2,13,4],[12,2,12,4],[11,2,11,4],[10,2,10,4],[9,2,9,4],[13,5,13,7],[12,5,12,7],[11,5,11,7],[10,5,10,7],[9,5,9,7],[1,0,2,10],[30,0,30,9],[14,5,14,7],[8,5,8,7],[7,5,7,7],[6,5,6,7],[14,8,14,9],[8,8,8,9],[7,8,7,9],[6,8,6,9],[14,0,14,1],[8,0,8,1],[7,0,7,1],[6,0,6,1],[14,2,14,4],[8,2,8,4],[7,2,7,4],[9,8,9,9],[6,2,6,4],[5,2,5,4],[5,8,5,9],[4,8,4,9],[4,5,4,7],[4,2,4,4],[32,0,32,9],[34,7,34,9],[34,1,34,6],[45,7,45,9],[42,7,42,9],[37,7,37,9],[36,7,36,9],[35,7,35,9],[44,7,44,9],[43,7,43,9],[41,7,41,9],[40,7,40,9],[39,7,39,9],[38,7,38,9],[45,1,45,6],[44,1,44,6],[47,0,47,9],[52,4,52,9],[50,4,50,9],[52,0,52,3],[50,0,50,3],[38,1,38,6],[37,1,37,6],[36,1,36,6],[35,1,35,6],[43,1,43,6],[42,1,42,6],[41,1,41,6],[40,1,40,6],[39,1,39,6]]}
[]
["Ūkio subjektai (įskaitant kvazisubtiekėjus - fiziniai asmenys, kuriuos ketinama įdarbinti pirkimo laimėjimo atveju), kurių pajėgumais tiekėjas remiasi, kad atitiktų keliamus kvalifikacijos reikalavimus:"]
[]
[]
["Pavadinimas*",null,"Kodas, adresas",null,null,"Perduodama veikla",null,null,"Perduodamos veiklos dalis nuo visos pirkimo sutarties (Eur arba %)",null,"Kval. Reikalavimo Nr."]
[]
[]
[]
[]
[]
[]
[]
[]
[]
[]
[]
["Subtiekėjams / subteikėjams / subrangovams numatomos perduoti veiklos (privaloma nurodyti) ir šių ūkio subjektų pavadinimai (jei žinomi):"]
[]
["Pavadinimas",null,"Kodas, adresas",null,null,"Perduodama veikla*",null,null,"Perduodamos veiklos dalis nuo visos pirkimo sutarties (Eur arba %)"]
[]
[]
[]
[]
[]
[]
[]
[]
[]
[]
[]
["* Pildyti tuomet, jei pirkimo sutarties vykdymui bus pasitelkti subtiekėjai. Jeigu tiekėjas nenurodo subtiekėjų, laikoma, kad vykdant pirkimo sutartį jų nebus pasitelkiama."]
[]
["Kartu su pasiūlymu pateikiami šie dokumentai:"]
[]
["Nr.","Dokumento  pavadinimas",null,null,null,null,null,"Dokumentas yra konfidencialus? Taip/Ne"]
[1,"Jungtinės veiklos kopija (jei taikoma)"]
[2,"Subtiekimo sutartis, ketinimų protokolas, preliminarios sutartys ar kiti dokumentai, patvirtinantys, kad laimėjus pirkimą tiekėjui bus prieinami kitų ūkio subjektų ištekliai (jei pasitelkiami kvalifikacijos atitikimui)"]
[3,"Pasiūlymo atitikimą pirkimo sąlygų techninei specifikacijai pagrindžiantys dokumentai",null,null,null,null,null,"Taip"]
[4,"UAB DEPO DIY LT_Įgaliojimas",null,null,null,null,null,"Ne"]
[5,"UAB DEPO DIY LT_Techninės specifikacijos priedas ( priede nurodyti prekių įkainiai ir prekių aprašymai yra komercinė UAB \"DEPO DIY LT\" paslaptis. Bendra pasiūlymo kaina (be/su PVM) ir PVM suma nėra konfidenciali informacija.  ",null,null,null,null,null,"Taip"]
[]
[]
[]
[]
[]
[]
[]
["Pasiūlyme nurodyta Prekės kaina, išskyrus jos sudedamąsias dalis, subtiekėjai, taip pat kita informacija, kuri teisės aktų nustatyta tvarka turi būti skelbiama arba kitokiu būdu viešai prieinama visuomenei, nėra laikoma konfidencialia informacija. Konfidencialią informaciją sudaro, visų pirma, komercinė (gamybinė) paslaptis ir konfidencialieji pasiūlymų aspektai. Informacija, kurią viešai skelbti įpareigoja Lietuvos Respublikos įstatymai, negali būti tiekėjo nurodoma kaip konfidenciali, todėl, tiekėjui nurodžius tokią informaciją kaip konfidencialią, perkančioji organizacija turi teisę ją skelbti. Jei tiekėjas nenurodo konfidencialios informacijos, laikoma, kad konfidencialios informacijos tiekėjo pasiūlyme nėra. Vadovaujantis Informacijos viešinimo Centrinėje viešųjų pirkimų informacinėje sistemoje tvarkos aprašu, patvirtintu Viešųjų pirkimų tarnybos direktoriaus 2017 m. birželio 19 d. įsakymu Nr. 1S-91 „Dėl Informacijos viešinimo Centrinėje viešųjų pirkimų informacinėje sistemoje tvarkos aprašo patvirtinimo“, perkančioji organizacija laimėjusio dalyvio pasiūlymą, išskyrus informaciją, kurią tiekėjas nurodė kaip konfidencialią, paskelbs CVP IS."]
[]
[]
["Tiekėjo arba jo įgalioto asmens pareigų pavadinimas:",null,null,null,"Kompleksinių pardavimų vadybos skyriaus vadovė"]
[]
["Pasirašančio asmens vardas ir pavardė:",null,null,null,"Kristiāna Kaļva"]
[]
[]
[]
[]
[]
[]
[]
[]
[]
[]
[]
[]
[]
[]
[]
[]
[]
[]
[]
[]
[]
[]
[]
[]
[]
[]
[]
[]
[]
[]
[]
[]
[]
[]
[]
[]
[]
[]
[]
[]
[]
[]
[]
[]
[]
[]
["4983 2021-02-10 15:38:09"]